fUSD/lending_fUSD_20250426
["ID","MTS","AMOUNT","RATE_DAILY","PERIOD"]
[359094118,1745704251713,-151.0,0.00019796,2]
[359094119,1745704251723,-151.0,0.00019796,2]
[359094120,1745704251734,-151.0,0.00019796,2]
[359094121,1745704251745,-207.069999,0.00019796,2]
[359094122,1745704251755,-207.069999,0.00019796,2]
[359094123,1745704251766,-151.0,0.00019796,2]
[359094124,1745704251777,-796.39,0.00019796,2]
[359094125,1745704251787,-151.0,0.00019796,2]
[359094126,1745704251797,-628.450043,0.00019796,2]
[359094127,1745704251808,-628.450043,0.00019796,2]
[359094128,1745704251817,-151.0,0.00019796,2]
[359094129,1745704251826,-176.852989,0.00019796,2]
[359094130,1745704251836,-285.526094,0.00019796,2]
[359094131,1745704251846,-176.625401,0.00019796,2]
[359094132,1745704251856,-176.625401,0.00019796,2]
[359094133,1745704251867,-254.377851,0.00019796,2]
[359094134,1745704251879,-730.12,0.00019796,2]
[359094135,1745704251889,-151.0,0.00019796,2]
[359094136,1745704251901,-151.0,0.00019796,2]
[359094137,1745704251910,-151.0,0.00019796,2]
[359094138,1745704251921,-500.0,0.00019796,2]
[359094139,1745704251933,-151.0,0.00019796,2]
[359094140,1745704251944,-500.0,0.00019796,2]
[359094141,1745704251954,-258.871286,0.00019796,2]
[359094142,1745704251964,-258.871286,0.00019796,2]
[359094143,1745704251974,-151.0,0.00019796,2]
[359094144,1745704251983,-150.0,0.00019796,2]
[359094145,1745704251993,-150.0,0.00019796,2]
[359094146,1745704252002,-150.0,0.00019796,2]
[359094147,1745704252012,-151.0,0.00019799,2]
[359094148,1745704252021,-796.39,0.00019799,2]
[359094149,1745704252031,-151.0,0.00019799,2]
[359094150,1745704252041,-730.12,0.00019799,2]
[359094151,1745704252051,-500.0,0.00019799,2]
[359094152,1745704252061,-500.0,0.00019799,2]
[359094153,1745704252071,-151.0,0.00019799,2]
[359094154,1745704252082,-151.0,0.00019799,2]
[359094155,1745704252092,-151.0,0.00019799,2]
[359094156,1745704252102,-164.3326,0.00019799,2]
[359094157,1745704252112,-164.3326,0.00019799,2]
[359094158,1745704252123,-735.8646718,0.00019799,2]
[359094159,1745704252132,-151.0,0.00019799,2]
[359094160,1745704252142,-150.0,0.00019799,2]
[359094161,1745704252152,-412.148996,0.00019799,2]
[359094162,1745704252163,-412.148996,0.00019799,2]
[359094163,1745704252172,-186.896692,0.00019799,2]
[359094164,1745704252183,-186.896692,0.00019799,2]
[359094165,1745704252193,-151.0,0.00019799,2]
[359094166,1745704252203,-151.0,0.00019799,2]
[359094167,1745704252213,-162.100813,0.00019799,2]
[359094168,1745704252223,-162.100813,0.00019799,2]
[359094169,1745704252233,-538.44,0.00019799,2]
[359094170,1745704252244,-538.44,0.00019799,2]
[359094171,1745704252254,-538.44,0.00019799,2]
[359094172,1745704252264,-538.44,0.00019799,2]
[359094173,1745704252274,-538.44,0.00019799,2]
[359094174,1745704252283,-500.0,0.00019799,2]
[359094175,1745704252293,-500.0,0.00019799,2]
[359094176,1745704252303,-574.4477874,0.00019799,2]
[359094177,1745704252314,-593.0,0.00019799,2]
[359094178,1745704252323,-171949.47520124,0.000198,2]
[359094179,1745704252811,-575554.71502527,0.000198,2]
[359094180,1745704252840,-507.8130242,0.000198,2]
[359094181,1745704253174,-795.48188009,0.000198,2]
[359094182,1745704253186,-6350.0,0.000198,2]
[359094183,1745704253611,-155.96257904,0.00019684,2]
[359094184,1745704253621,-1279.73457521,0.00019731,2]
[359094185,1745704253631,-7155.19515575,0.000198,2]
[359094186,1745704253770,-1402.275,0.000198,2]
[359094187,1745704254840,-155.96257902,0.00019692,2]
[359094188,1745704254858,-375.82527712,0.00019755,2]
[359094189,1745704255070,-903.90929809,0.00019755,2]
[359094190,1745704255080,-214.49070191,0.00019783,2]
[359094191,1745704255093,-185.50929809,0.00019783,2]
[359094192,1745704255104,-400.0,0.00019784,2]
[359094193,1745704255114,-128.99791577,0.000198,2]
[359094194,1745704255127,-784.9815,0.000198,2]
[359094195,1745704255140,-1414.157248,0.000198,2]
[359094196,1745704255153,-545.152395,0.000198,2]
[359094197,1745704255166,-1144.67356,0.000198,2]
[359094198,1745704255179,-472.95900005,0.000198,2]
[359094199,1745704255191,-1126.6565,0.000198,2]
[359094200,1745704256936,150.0,0.00018812,7]
[359094202,1745704283368,556.55,0.00018808,2]
[359094203,1745704288066,1000.0,0.00018808,2]
[359094204,1745704289007,155.0,0.0002945,44]
[359094205,1745704307996,2181.71,0.00018806,2]
[359094208,1745704399596,150.0,0.00018792,2]
[359094209,1745704401942,155.0,0.0003698,120]
[359094210,1745704457685,261.75,0.00018783,2]
[359094211,1745704458373,261.75,0.00025827,120]
[359094212,1745704458768,261.75,0.00028175,120]
[359094213,1745704550478,11191.01,0.00018946,2]
[359094214,1745704593718,490.058576,0.0001925,2]
[359094215,1745704749729,429.01,0.00016851,2]
[359094216,1745704749938,429.01,0.00019115,2]
[359094217,1745704796490,1497.25,0.00018774,2]
[359094218,1745704798390,433.66,0.00018774,2]
[359094219,1745704826294,8621.44,0.00018774,2]
[359094220,1745704835319,23900.0,0.00018769,2]
[359094221,1745704996785,926.93,0.00018909,2]
[359094222,1745705016922,203.77,0.00018755,2]
[359094223,1745705071630,250.0,0.00018761,2]
[359094225,1745705303646,200.0,0.00018743,2]
[359094374,1745705362596,162.74,0.00018756,2]
[359094378,1745705396653,150.0,0.00018756,7]
[359094386,1745705432102,-150.08,0.00019347,2]
[359094387,1745705432112,-200.0,0.0001935,2]
[359094388,1745705432124,-200.0,0.00019353,2]
[359094389,1745705432135,-200.0,0.0001941,2]
[359094390,1745705432144,-1377.70150883,0.00019539,2]
[359094391,1745705432154,-373.0127,0.00019581,2]
[359094392,1745705432164,-508.0,0.00019644,2]
[359094393,1745705432174,-151.0,0.0001967,2]
[359094395,1745705432190,-207.4,0.0001967,2]
[359094397,1745705432200,-187.11466006,0.00019679,2]
[359094398,1745705432209,-1200.0,0.0001968,2]
[359094400,1745705432219,-300.0,0.0001968,2]
[359094402,1745705432229,-1217.16841228,0.00019681,2]
[359094404,1745705432239,-569.28822612,0.00019681,2]
[359094406,1745705432249,-785.0,0.00019681,2]
[359094408,1745705432259,-767.84074518,0.00019681,2]
[359094410,1745705432270,-17316.5065,0.00019682,2]
[359094412,1745705432280,-8622.6613,0.00019682,2]
[359094414,1745705432290,-155.96257902,0.00019686,2]
[359094416,1745705432299,-167.28667142,0.00019697,2]
[359094418,1745705432309,-1217.16841226,0.00019705,2]
[359094420,1745705432320,-767.84074512,0.00019705,2]
[359094422,1745705432331,-1217.16841226,0.0001973,2]
[359094424,1745705432341,-767.84074512,0.0001973,2]
[359094426,1745705432351,-1217.16841226,0.00019754,2]
[359094428,1745705432361,-767.84074512,0.00019754,2]
[359094430,1745705432370,-925.41,0.00019771,2]
[359094432,1745705432380,-51549.96745709,0.00019772,2]
[359094434,1745705432392,-500.0,0.00019773,2]
[359094436,1745705432404,-459.27150142,0.00019773,2]
[359094438,1745705432413,-500.0,0.00019773,2]
[359094440,1745705432423,-500.0,0.00019773,2]
[359094441,1745705432433,-500.0,0.00019773,2]
[359094443,1745705432444,-262.59416496,0.00019773,2]
[359094445,1745705432453,-500.93538089,0.00019773,2]
[359094447,1745705432463,-162.22541034,0.00019773,2]
[359094449,1745705432474,-500.0,0.00019773,2]
[359094451,1745705432484,-1217.16841226,0.00019778,2]
[359094453,1745705432494,-767.84074512,0.00019778,2]
[359094455,1745705432504,-499.12,0.0001978,2]
[359094457,1745705432514,-407.22,0.0001978,2]
[359094459,1745705432523,-620.36,0.0001978,2]
[359094461,1745705432533,-400.0,0.0001978,2]
[359094462,1745705432542,-400.0,0.0001978,2]
[359094464,1745705432552,-794.16,0.0001978,2]
[359094466,1745705432562,-220.81434598,0.0001978,2]
[359094468,1745705432571,-400.0,0.0001978,2]
[359094470,1745705432581,-400.0,0.0001978,2]
[359094472,1745705432591,-151.60899434,0.0001978,2]
[359094477,1745705432626,-248.39100566,0.0001978,2]
[359094479,1745705432636,-400.0,0.0001978,2]
[359094481,1745705432646,-598.09,0.0001978,2]
[359094482,1745705432656,-108.69152534,0.0001978,2]
[359094485,1745705432667,-2256.51847466,0.0001978,2]
[359094487,1745705432677,-400.0,0.0001978,2]
[359094488,1745705432687,-400.0,0.0001978,2]
[359094490,1745705432696,-400.0,0.0001978,2]
[359094492,1745705432706,-400.0,0.0001978,2]
[359094494,1745705432717,-400.0,0.0001978,2]
[359094496,1745705432727,-400.0,0.0001978,2]
[359094498,1745705432737,-400.0,0.0001978,2]
[359094499,1745705432746,-400.0,0.0001978,2]
[359094500,1745705432756,-404.78,0.0001978,2]
[359094501,1745705432765,-400.0,0.0001978,2]
[359094502,1745705432775,-440.45,0.0001978,2]
[359094503,1745705432785,-652.68,0.0001978,2]
[359094504,1745705432794,-400.0,0.0001978,2]
[359094505,1745705432804,-400.0,0.0001978,2]
[359094506,1745705432814,-655.73,0.0001978,2]
[359094507,1745705432824,-589.07,0.0001978,2]
[359094508,1745705432834,-500.0,0.0001978,2]
[359094509,1745705432844,-500.0,0.0001978,2]
[359094510,1745705432856,-400.0,0.0001978,2]
[359094511,1745705432867,-430.98,0.0001978,2]
[359094512,1745705432878,-400.0,0.0001978,2]
[359094513,1745705432889,-400.0,0.0001978,2]
[359094514,1745705432899,-538.1,0.0001978,2]
[359094515,1745705432909,-400.0,0.0001978,2]
[359094516,1745705432919,-480.36,0.0001978,2]
[359094517,1745705432929,-568.39,0.0001978,2]
[359094518,1745705432939,-784.29,0.0001978,2]
[359094519,1745705432948,-525.07,0.0001978,2]
[359094520,1745705432958,-411.24,0.0001978,2]
[359094521,1745705432967,-461.55,0.0001978,2]
[359094522,1745705432977,-400.0,0.0001978,2]
[359094523,1745705432987,-400.0,0.0001978,2]
[359094524,1745705432997,-578.72,0.0001978,2]
[359094525,1745705433007,-503.54,0.0001978,2]
[359094526,1745705433017,-400.0,0.0001978,2]
[359094527,1745705433026,-400.0,0.0001978,2]
[359094528,1745705433036,-412.34,0.0001978,2]
[359094529,1745705433046,-787.12,0.0001978,2]
[359094530,1745705433056,-669.69,0.0001978,2]
[359094531,1745705433066,-400.0,0.0001978,2]
[359094532,1745705433076,-410.36,0.0001978,2]
[359094533,1745705433087,-400.0,0.0001978,2]
[359094534,1745705433096,-500.0,0.0001978,2]
[359094535,1745705433106,-5935.21,0.0001978,2]
[359094536,1745705433115,-416.73,0.0001978,2]
[359094537,1745705433125,-400.0,0.0001978,2]
[359094538,1745705433135,-400.0,0.0001978,2]
[359094539,1745705433146,-500.0,0.0001978,2]
[359094540,1745705433155,-400.0,0.0001978,2]
[359094541,1745705433165,-400.0,0.0001978,2]
[359094542,1745705433175,-400.0,0.0001978,2]
[359094543,1745705433185,-532.55,0.0001978,2]
[359094544,1745705433195,-400.0,0.0001978,2]
[359094545,1745705433205,-400.0,0.0001978,2]
[359094546,1745705433216,-400.0,0.0001978,2]
[359094547,1745705433226,-400.0,0.0001978,2]
[359094548,1745705433236,-357.89970977,0.0001978,2]
[359094549,1745705433246,-500.0,0.0001978,2]
[359094550,1745705433256,-189.86912548,0.0001978,2]
[359094551,1745705433265,-500.0,0.0001978,2]
[359094552,1745705433275,-500.0,0.0001978,2]
[359094553,1745705433285,-432.09794389,0.0001978,2]
[359094554,1745705433295,-400.0,0.00019781,2]
[359094555,1745705433306,-400.0,0.00019781,2]
[359094556,1745705433315,-400.0,0.00019781,2]
[359094557,1745705433325,-400.0,0.00019781,2]
[359094558,1745705433336,-400.0,0.00019781,2]
[359094559,1745705433346,-400.0,0.00019781,2]
[359094560,1745705433356,-500.0,0.00019781,2]
[359094561,1745705433365,-400.0,0.00019781,2]
[359094562,1745705433375,-609.73,0.00019781,2]
[359094563,1745705433385,-500.0,0.00019781,2]
[359094564,1745705433398,-400.0,0.00019781,2]
[359094568,1745705433408,-400.0,0.00019781,2]
[359094569,1745705433736,-400.0,0.00019781,2]
[359094570,1745705433746,-491.58,0.00019781,2]
[359094571,1745705433757,-400.0,0.00019781,2]
[359094572,1745705433766,-400.0,0.00019781,2]
[359094573,1745705433776,-400.0,0.00019781,2]
[359094574,1745705433792,-494.71801646,0.00019781,2]
[359094575,1745705433803,-400.0,0.00019781,2]
[359094576,1745705433812,-500.0,0.00019781,2]
[359094577,1745705433822,-400.0,0.00019781,2]
[359094578,1745705433833,-735.72,0.00019781,2]
[359094579,1745705433842,-201.34295102,0.00019781,2]
[359094582,1745705437802,-8719.009226,0.0001978,2]
[359094583,1745705437817,-400.0,0.0001978,2]
[359094584,1745705437828,-400.0,0.0001978,2]
[359094585,1745705437840,-298.65704898,0.00019781,2]
[359094586,1745705437850,-400.0,0.00019781,2]
[359094587,1745705437861,-400.0,0.00019781,2]
[359094588,1745705437871,-500.0,0.00019781,2]
[359094589,1745705437881,-400.0,0.00019781,2]
[359094590,1745705437892,-535.66,0.00019781,2]
[359094591,1745705437902,-400.0,0.00019781,2]
[359094592,1745705437913,-400.0,0.00019781,2]
[359094593,1745705437923,-400.0,0.00019781,2]
[359094594,1745705437935,-500.0,0.00019781,2]
[359094595,1745705437945,-400.0,0.00019781,2]
[359094596,1745705437955,-400.0,0.00019781,2]
[359094597,1745705437965,-1079.77,0.00019781,2]
[359094598,1745705437975,-400.0,0.00019781,2]
[359094599,1745705437985,-400.0,0.00019781,2]
[359094600,1745705437995,-400.0,0.00019781,2]
[359094601,1745705438006,-693.6,0.00019781,2]
[359094602,1745705438016,-400.0,0.00019781,2]
[359094603,1745705438028,-400.0,0.00019781,2]
[359094604,1745705438038,-545.43,0.00019781,2]
[359094605,1745705438049,-500.0,0.00019781,2]
[359094606,1745705438059,-400.0,0.00019781,2]
[359094607,1745705438070,-561.97,0.00019781,2]
[359094608,1745705438080,-400.0,0.00019781,2]
[359094609,1745705438091,-400.0,0.00019781,2]
[359094610,1745705438101,-1311.36,0.00019781,2]
[359094611,1745705438111,-400.0,0.00019781,2]
[359094612,1745705438121,-500.0,0.00019781,2]
[359094613,1745705438131,-450.49,0.00019781,2]
[359094615,1745705438141,-507.13232851,0.00019781,2]
[359094617,1745705438151,-400.0,0.00019781,2]
[359094619,1745705438161,-400.0,0.00019781,2]
[359094621,1745705438171,-400.0,0.00019781,2]
[359094623,1745705438180,-484.87,0.00019781,2]
[359094625,1745705438190,-400.0,0.00019781,2]
[359094627,1745705438200,-488.64,0.00019781,2]
[359094629,1745705438210,-400.0,0.00019781,2]
[359094631,1745705438219,-400.0,0.00019781,2]
[359094633,1745705438229,-400.0,0.00019781,2]
[359094635,1745705438239,-413.28,0.00019781,2]
[359094637,1745705438249,-400.0,0.00019781,2]
[359094639,1745705438259,-400.0,0.00019781,2]
[359094641,1745705438269,-400.0,0.00019781,2]
[359094643,1745705438279,-400.0,0.00019781,2]
[359094645,1745705438288,-356.80493524,0.00019781,2]
[359094647,1745705438298,-400.0,0.00019781,2]
[359094649,1745705438308,-400.0,0.00019781,2]
[359094651,1745705438317,-400.0,0.00019781,2]
[359094653,1745705438327,-438.97,0.00019781,2]
[359094654,1745705438337,-250.0,0.00019781,2]
[359094656,1745705438348,-400.0,0.00019781,2]
[359094658,1745705438358,-500.0,0.00019781,2]
[359094660,1745705438368,-400.0,0.00019781,2]
[359094662,1745705438378,-400.0,0.00019781,2]
[359094664,1745705438388,-400.0,0.00019781,2]
[359094666,1745705438402,-589.01,0.00019781,2]
[359094668,1745705438412,-400.0,0.00019781,2]
[359094670,1745705438422,-400.0,0.00019781,2]
[359094672,1745705438433,-400.0,0.00019781,2]
[359094674,1745705438443,-500.0,0.00019781,2]
[359094675,1745705438454,-509.54,0.00019781,2]
[359094677,1745705438464,-400.0,0.00019781,2]
[359094679,1745705438476,-523.26,0.00019781,2]
[359094681,1745705438486,-400.0,0.00019781,2]
[359094683,1745705438496,-400.0,0.00019781,2]
[359094685,1745705438506,-486.52,0.00019781,2]
[359094687,1745705438518,-400.0,0.00019781,2]
[359094689,1745705438527,-152.83404226,0.00019781,2]
[359094692,1745705438542,-347.16595774,0.00019781,2]
[359094694,1745705438552,-354.49804893,0.00019781,2]
[359094697,1745705438575,-45.50195107,0.00019781,2]
[359094699,1745705438585,-400.0,0.00019781,2]
[359094701,1745705438596,-500.0,0.00019781,2]
[359094703,1745705438607,-1341.0,0.00019781,2]
[359094705,1745705438617,-452.64,0.00019781,2]
[359094707,1745705438627,-400.0,0.00019781,2]
[359094709,1745705438637,-430.0,0.00019781,2]
[359094711,1745705438646,-939.52,0.00019781,2]
[359094713,1745705438656,-462.4,0.00019781,2]
[359094715,1745705438665,-500.0,0.00019781,2]
[359094717,1745705438675,-400.0,0.00019781,2]
[359094719,1745705438685,-400.0,0.00019781,2]
[359094721,1745705438695,-400.0,0.00019781,2]
[359094723,1745705438706,-400.0,0.00019781,2]
[359094725,1745705438716,-400.0,0.00019781,2]
[359094727,1745705438726,-430.71,0.00019781,2]
[359094729,1745705438736,-512.80951614,0.00019781,2]
[359094731,1745705438746,-856.87,0.00019781,2]
[359094733,1745705438758,-447.07,0.00019781,2]
[359094735,1745705438768,-400.0,0.00019781,2]
[359094737,1745705438777,-500.0,0.00019781,2]
[359094739,1745705438787,-554.98,0.00019781,2]
[359094742,1745705438802,-400.0,0.00019781,2]
[359094744,1745705438812,-656.75,0.00019781,2]
[359094746,1745705438823,-400.0,0.00019781,2]
[359094748,1745705438833,-400.0,0.00019781,2]
[359094750,1745705438844,-905.22,0.00019781,2]
[359094752,1745705438854,-400.0,0.00019781,2]
[359094754,1745705438864,-400.0,0.00019781,2]
[359094756,1745705438874,-400.0,0.00019781,2]
[359094758,1745705438884,-400.0,0.00019781,2]
[359094760,1745705438893,-1503.82,0.00019781,2]
[359094762,1745705438903,-400.0,0.00019781,2]
[359094764,1745705438913,-400.0,0.00019781,2]
[359094766,1745705438922,-400.23,0.00019781,2]
[359094768,1745705438932,-701.53,0.00019781,2]
[359094770,1745705438944,-400.0,0.00019781,2]
[359094771,1745705438955,-468.58,0.00019781,2]
[359094774,1745705438967,-400.0,0.00019781,2]
[359094776,1745705438978,-440.13,0.00019781,2]
[359094778,1745705438989,-515.13,0.00019781,2]
[359094780,1745705438999,-400.0,0.00019781,2]
[359094782,1745705439009,-400.0,0.00019781,2]
[359094784,1745705439019,-652.62,0.00019781,2]
[359094786,1745705439028,-400.0,0.00019781,2]
[359094788,1745705439038,-400.0,0.00019781,2]
[359094789,1745705439048,-400.0,0.00019781,2]
[359094791,1745705439058,-500.0,0.00019781,2]
[359094793,1745705439068,-150.50202754,0.00019781,2]
[359094796,1745705439078,-400.0,0.00019781,2]
[359094797,1745705439087,-400.0,0.00019781,2]
[359094799,1745705439098,-400.0,0.00019781,2]
[359094801,1745705439108,-500.0,0.00019781,2]
[359094803,1745705439118,-400.0,0.00019781,2]
[359094805,1745705439128,-651.76,0.00019781,2]
[359094808,1745705439138,-400.0,0.00019781,2]
[359094810,1745705439148,-400.0,0.00019781,2]
[359094812,1745705439158,-663.66,0.00019781,2]
[359094814,1745705439168,-400.0,0.00019781,2]
[359094816,1745705439178,-400.0,0.00019781,2]
[359094818,1745705439188,-400.0,0.00019781,2]
[359094820,1745705439198,-400.0,0.00019781,2]
[359094822,1745705439208,-433.4,0.00019781,2]
[359094824,1745705439218,-400.0,0.00019781,2]
[359094826,1745705439234,-400.0,0.00019781,2]
[359094828,1745705439244,-400.0,0.00019781,2]
[359094830,1745705439255,-400.0,0.00019781,2]
[359094832,1745705439265,-400.0,0.00019781,2]
[359094834,1745705439275,-504.65,0.00019781,2]
[359094836,1745705439286,-400.0,0.00019781,2]
[359094838,1745705439296,-400.0,0.00019781,2]
[359094840,1745705439306,-400.0,0.00019781,2]
[359094843,1745705439316,-472.06,0.00019781,2]
[359094844,1745705439326,-453.89,0.00019781,2]
[359094847,1745705439337,-400.0,0.00019781,2]
[359094848,1745705439348,-564.25,0.00019781,2]
[359094851,1745705439358,-400.0,0.00019781,2]
[359094853,1745705439368,-400.0,0.00019781,2]
[359094854,1745705439377,-400.0,0.00019781,2]
[359094856,1745705439387,-400.0,0.00019781,2]
[359094858,1745705439401,-400.0,0.00019781,2]
[359094860,1745705439411,-400.0,0.00019781,2]
[359094862,1745705439421,-273.92571822,0.00019781,2]
[359094864,1745705439431,-569.08,0.00019781,2]
[359094866,1745705439442,-720.53,0.00019781,2]
[359094869,1745705439452,-400.0,0.00019781,2]
[359094870,1745705439463,-400.0,0.00019781,2]
[359094872,1745705439474,-400.0,0.00019781,2]
[359094874,1745705439485,-500.0,0.00019781,2]
[359094877,1745705439495,-500.0,0.00019781,2]
[359094878,1745705439504,-400.0,0.00019781,2]
[359094880,1745705439514,-400.0,0.00019781,2]
[359094882,1745705439525,-400.0,0.00019781,2]
[359094884,1745705439535,-400.0,0.00019781,2]
[359094887,1745705439546,-400.0,0.00019781,2]
[359094889,1745705439556,-500.0,0.00019781,2]
[359094890,1745705439566,-400.0,0.00019781,2]
[359094892,1745705439576,-500.0,0.00019781,2]
[359094894,1745705439585,-400.0,0.00019781,2]
[359094896,1745705439598,-400.0,0.00019781,2]
[359094899,1745705439609,-400.0,0.00019781,2]
[359094900,1745705439618,-2905.48,0.00019781,2]
[359094902,1745705439628,-400.0,0.00019781,2]
[359094904,1745705439638,-400.0,0.00019781,2]
[359094906,1745705439648,-150.0,0.00019781,2]
[359094908,1745705439658,-400.0,0.00019781,2]
[359094910,1745705439668,-200.0,0.00019781,2]
[359094914,1745705439682,-424.75,0.00019781,2]
[359094916,1745705439692,-500.0,0.00019781,2]
[359094918,1745705439702,-831.67,0.00019781,2]
[359094920,1745705439713,-416.49,0.00019781,2]
[359094922,1745705439722,-526.98,0.00019781,2]
[359094924,1745705439732,-400.0,0.00019781,2]
[359094926,1745705439742,-150.0,0.00019781,2]
[359094928,1745705439752,-400.0,0.00019781,2]
[359094930,1745705439762,-400.0,0.00019781,2]
[359094932,1745705439772,-400.0,0.00019781,2]
[359094934,1745705439782,-509.84,0.00019781,2]
[359094936,1745705439792,-609.73,0.00019781,2]
[359094938,1745705439802,-520.82,0.00019781,2]
[359094940,1745705439812,-924.08,0.00019781,2]
[359094942,1745705439822,-400.0,0.00019781,2]
[359094944,1745705439832,-616.99,0.00019781,2]
[359094946,1745705439842,-626.54,0.00019781,2]
[359094948,1745705439852,-400.0,0.00019781,2]
[359094950,1745705439861,-654.51,0.00019781,2]
[359094952,1745705439871,-500.0,0.00019781,2]
[359094954,1745705439881,-400.0,0.00019781,2]
[359094956,1745705439890,-400.0,0.00019781,2]
[359094958,1745705439900,-449.45121917,0.00019781,2]
[359094960,1745705439910,-465.94,0.00019781,2]
[359094962,1745705439919,-400.0,0.00019781,2]
[359094964,1745705439929,-400.0,0.00019781,2]
[359094966,1745705439939,-400.0,0.00019781,2]
[359094968,1745705439949,-400.0,0.00019781,2]
[359094970,1745705439959,-578.98,0.00019781,2]
[359094973,1745705439969,-400.0,0.00019781,2]
[359094975,1745705439979,-400.0,0.00019781,2]
[359094977,1745705439989,-400.0,0.00019781,2]
[359094979,1745705439999,-400.0,0.00019781,2]
[359094981,1745705440008,-400.0,0.00019781,2]
[359094983,1745705440018,-327.15132585,0.00019781,2]
[359094985,1745705440028,-400.0,0.00019781,2]
[359094987,1745705440037,-691.09,0.00019781,2]
[359094989,1745705440047,-400.0,0.00019781,2]
[359094991,1745705440057,-400.0,0.00019781,2]
[359094993,1745705440067,-458.51615229,0.00019781,2]
[359094995,1745705440077,-713.7,0.00019781,2]
[359094997,1745705440087,-400.0,0.00019781,2]
[359094999,1745705440098,-400.0,0.00019781,2]
[359095001,1745705440107,-400.0,0.00019781,2]
[359095004,1745705440128,-400.0,0.00019781,2]
[359095006,1745705440140,-635.22,0.00019781,2]
[359095008,1745705440150,-759.13,0.00019781,2]
[359095010,1745705440160,-400.0,0.00019781,2]
[359095012,1745705440170,-830.34,0.00019781,2]
[359095014,1745705440180,-400.0,0.00019781,2]
[359095054,1745705440541,-556.39,0.00019781,2]
[359095058,1745705440553,-531.68,0.00019781,2]
[359095060,1745705440564,-400.0,0.00019781,2]
[359095063,1745705440573,-400.0,0.00019781,2]
[359095066,1745705440583,-400.0,0.00019781,2]
[359095068,1745705440593,-500.0,0.00019781,2]
[359095071,1745705440604,-400.0,0.00019781,2]
[359095073,1745705440614,-490.05,0.00019781,2]
[359095076,1745705440623,-400.0,0.00019781,2]
[359095079,1745705440633,-400.0,0.00019781,2]
[359095082,1745705440643,-500.0,0.00019781,2]
[359095084,1745705440652,-400.0,0.00019781,2]
[359095087,1745705440662,-400.0,0.00019781,2]
[359095089,1745705440671,-637.14,0.00019781,2]
[359095091,1745705440681,-400.0,0.00019781,2]
[359095093,1745705440691,-400.0,0.00019781,2]
[359095094,1745705440700,-681.38,0.00019781,2]
[359095096,1745705440710,-400.0,0.00019781,2]
[359095099,1745705440719,-482.96,0.00019781,2]
[359095102,1745705440729,-500.0,0.00019781,2]
[359095105,1745705440738,-400.0,0.00019781,2]
[359095108,1745705440747,-400.0,0.00019781,2]
[359095111,1745705440757,-400.0,0.00019781,2]
[359095114,1745705440767,-400.0,0.00019781,2]
[359095117,1745705440776,-500.0,0.00019781,2]